Cogmind - Beta 13 X2 @@@ ROGUE MODE // 2023.12.21 @ 13:50:48 Player: AI-57H Result: Destroyed by D-53 Grenadier with Mini Grenade Launcher Performance ------------- Evolutions (0) 0 Regions Visited (2) 400 Robots Destroyed (11) 55 Value Destroyed (288) 288 Prototype IDs (3) 60 Alien Tech Used (0) 0 Bonus (0) 0 TOTAL SCORE: 803 Bonus ------- None Cogmind --------- Core Integrity 0/250 Matter 280/300 Energy 69/100 System Corruption 0% Temperature Cool (0) Movement Walking (120) Location -10/Mines Parts ------- > --- POWER (1) -------- (None) > --- PROPULSION (2) --- Aluminum Leg Improved Aluminum Leg > --- UTILITY (2) ------ Medium Storage Unit Advanced Targeting Computer > --- WEAPON (2) ------- Scythe > --- INVENTORY (10) --- Deuterium Engine Wheel Terrain Scanner Improved Utility Shielding Improved Utility Shielding EM Pulse Gun Grenade Launcher Mining Laser Peak State ------------ > --- POWER ------------ Light Nuclear Core > --- PROPULSION ------- Improved Aluminum Leg Improved Aluminum Leg > --- UTILITY ---------- Medium Storage Unit Advanced Targeting Computer > --- WEAPON ----------- EM Pulse Gun Scythe > --- INVENTORY -------- Deuterium Engine Aluminum Leg Improved Aluminum Leg Wheel Terrain Scanner Improved Utility Shielding Improved Utility Shielding EM Pulse Gun Grenade Launcher Mining Laser [Rating: 16] Favorites ----------- Power Ion Engine Engine Ion Engine Power Core Light Nuclear Core Propulsion Improved Aluminum Leg Treads Light Treads Leg Improved Aluminum Leg Utility Medium Storage Unit Device Improved Heat Sink Storage Medium Storage Unit Processor Advanced Targeting Computer Weapon Medium Laser Energy Gun Medium Laser Launcher Grenade Launcher Special Weapon Mining Laser Slashing Weapon Scythe Build | -11 -10 -10 ------- Run | Yrd Mat Min Slots Evolved . | . . . Power . | . . . Propulsion . | . . . Utility . | . . . Weapon . | . . . Parts Attached 29 | 8 10 11 Power 3 | 1 1 1 Engine 2 | 1 1 . Core 1 | . . 1 Reactor . | . . . Propulsion 10 | 4 2 4 Treads 2 | 2 . . Leg 8 | 2 2 4 Wheel . | . . . Hover . | . . . Flight . | . . . Utility 6 | 1 3 2 Device 3 | . 2 1 Storage 2 | 1 1 . Processor 1 | . . 1 Hackware . | . . . Protection . | . . . Artifact . | . . . Weapon 10 | 2 4 4 Energy Gun 5 | 2 2 1 Energy Cannon . | . . . Ballistic Gun . | . . . Ballistic Cannon . | . . . Launcher 2 | . 1 1 Special Weapon 2 | . 1 1 Impact Weapon . | . . . Slashing Weapon 1 | . . 1 Piercing Weapon . | . . . Special Melee Weapon . | . . . Unidentified Prototypes . | . . . Parts Lost 4 | . 1 3 Power 2 | . 1 1 Propulsion 1 | . . 1 Utility . | . . . Weapon 1 | . . 1 Highest Loss Streak 3 | . 1 3 To Critical Strikes . | . . . Average Slot Usage (%) 96 | . 95 98 Engine 10 | . 14 2 Core 2 | . . 10 Leg 28 | . 28 28 Device 9 | . 10 7 Storage 14 | . 14 14 Processor 2 | . . 7 Energy Gun 22 | . 25 13 Launcher 1 | . 1 1 Special Weapon 2 | . . 7 Slashing Weapon 1 | . . 5 Naked Turns . | . . . Heaviest Build 27 | 10 27 21 Greatest Support 40 | 40 26 26 Greatest Overweight (x) 1 | . 1 . Average Overweight (x) . | . . . Largest Inventory Capacity 10 | 8 10 10 Average Capacity 9 | 6 9 10 Most Carried 10 | 7 10 10 Average Carried 8 | 4 8 9 Final Capacity 10 | 8 10 10 Final Carried 9 | 7 9 8 Class Distribution -------------------- 100% | Mutant Dominant Class ---------------- Mutant | -10/Materials Mutant | -10/Mines Resources | -11 -10 -10 ----------- Run | Yrd Mat Min Matter Collected 399 | 179 110 110 Remotely . | . . . Salvage Created 324 | . 236 88 Parts 19 | . 17 2 Haulers Intercepted 1 | . 1 . Recyclers Shooed . | . . . Parts Field Recycled 14 | . 14 . Retrieved Matter 136 | . 136 . Parts Self-Destructed . | . . . Prevented . | . . . Kills | -11 -10 -10 ------- Run | Yrd Mat Min Combat Hostiles Destroyed 10 | . 7 3 Melee 1 | . . 1 Guns 6 | . 5 1 AOE 3 | . 2 1 Classes Destroyed 5 | . 4 1 Hauler 1 | . 1 . Watcher 1 | . 1 . Swarmer 3 | . 3 . Grunt 6 | . 4 2 Assembled 1 | . . 1 Best Kill Streak 3 | . 3 2 Combat Bots Only 3 | . 3 2 Max Kills in Single Turn 2 | . 2 1 Gunslinging 1 | . 1 . Exploded 1 | . 1 1 Melee 1 | . . 1 Uniques/NPCs Destroyed . | . . . Combat | -11 -10 -10 -------- Run | Yrd Mat Min Hostile Shots Fired 58 | . 30 28 Missed 21 | . 9 12 Damage Taken 866 | . 304 562 Core 277 | . 85 192 Absorbed by Shields . | . . . Core Remaining (%) 100 | 100 . . Volleys Fired 48 | . 38 10 Largest 2 | . 2 2 Hottest 150 | . 100 150 Shots Fired 90 | . 75 15 Gun 79 | . 69 10 Cannon . | . . . Launcher 7 | . 6 1 Special 4 | . . 4 Kinetic . | . . . Thermal 83 | . 69 14 Explosive 7 | . 6 1 Electromagnetic . | . . . Robot Hit Streak 8 | . 7 8 Robot Miss Streak 5 | . 5 . Penetration Max . | . . . Secondary Targets 2 | . 2 . Max Gunslinging Chain 1 | . 1 . Shots Hit Robots 46 | . 38 8 Core Hits 22 | . 17 5 Critical Kills . | . . . Critical Parts Destroyed . | . . . Critical Strikes 5 | . 4 1 Burn 5 | . 4 1 Melee Attacks 3 | . . 3 Impact . | . . . Slashing 3 | . . 3 Piercing . | . . . Sneak Attacks 1 | . . 1 Combat Hostiles . | . . . Follow-up Attacks . | . . . Damage Inflicted 1007 | . 768 239 Guns 524 | . 462 62 Cannons . | . . . Explosions 379 | . 306 73 Melee 104 | . . 104 Ramming . | . . . Kinetic . | . . . Thermal 524 | . 462 62 Explosive 379 | . 306 73 Electromagnetic . | . . . Impact . | . . . Slashing 104 | . . 104 Piercing . | . . . Highest Corruption . | . . . Average Corruption . | . . . Corruption Purged . | . . . Corruption Blocked . | . . . Overload Shots . | . . . Overflow Damage 24 | . . 24 Projectiles . | . . . Explosions . | . . . Melee 24 | . . 24 Knockbacks . | . . . Impact . | . . . Kinetic . | . . . Secondary . | . . . Self-Inflicted Damage 107 | . 67 40 Shots 5 | . 4 1 Rammed . | . . . Targets Rammed . | . . . Kicked . | . . . Crushed . | . . . Highest Temperature 257 | . 257 238 Average Temperature 99 | . 100 97 Received Heat Transfer 123 | . 111 12 Siege Activations . | . . . Robots Corrupted . | . . . Combat Hostiles . | . . . Parts Fried . | . . . Impact Corruptions . | . . . Robots Melted . | . . . Combat Hostiles . | . . . Parts Melted 4 | . 3 1 Heat Transferred 1924 | . 1665 259 Parts Sabotaged . | . . . Parts Stolen . | . . . Parts Stripped . | . . . Power Chain Reactions . | . . . Missiles Intercepted . | . . . Alert | -11 -10 -10 ------- Run | Yrd Mat Min Peak Influence 236 | . 236 117 Initial 50 | . . 50 Average 90 | . 95 102 Maximum Alert Level 1 | . 1 . Low Security (%) 95 | 100 93 100 Level 1 4 | . 6 . Level 2 . | . . . Level 3 . | . . . Level 4 . | . . . Level 5 . | . . . High Security . | . . . Max Security . | . . . Squads Dispatched 2 | . 1 1 Investigation 1 | . . 1 Extermination . | . . . Reinforcement 1 | . 1 . Assault . | . . . Garrison . | . . . Intercept . | . . . Searches Triggered . | . . . Construction Impeded . | . . . Haulers Reinforced . | . . . Active Scanning Responses . | . . . Cargo Convoy Interrupts . | . . . Stealth | -11 -10 -10 --------- Run | Yrd Mat Min Distress Signals 1 | . 1 . Communications Jammed . | . . . Distress Signals . | . . . Times Spotted 30 | . 18 12 Peak Tracking Total 12 | . 5 12 Tactical Retreats 1 | . 1 . Traps | -11 -10 -10 ------- Run | Yrd Mat Min Traps Triggered . | . . . Indirectly . | . . . Trap Hack Attempts . | . . . Triggered . | . . . Disarmed . | . . . Reprogrammed . | . . . Reused . | . . . Traps Extracted . | . . . Installed . | . . . Triggered . | . . . Machines | -11 -10 -10 ---------- Run | Yrd Mat Min Machines Disabled 1 | . 1 . Max in Single Turn 1 | . 1 . Machines Repaired . | . . . Machines Dismantled . | . . . Machines Sabotaged . | . . . Overloaded Fab Kills . | . . . Hacking | -11 -10 -10 --------- Run | Yrd Mat Min Machines Accessed 8 | . 7 1 Terminals 7 | . 7 . Fabricators . | . . . Repair Stations . | . . . Recycling Units . | . . . Scanalyzers . | . . . Garrison Access . | . . . Total Hacks 20 | . 19 1 Successful 10 | . 9 1 Failed 10 | . 10 . Catastrophic . | . . . Database Lockouts . | . . . Manual 14 | . 14 . Terminals 19 | . 19 . Fabricators . | . . . Repair Stations . | . . . Recycling Units . | . . . Scanalyzers . | . . . Garrison Access . | . . . Terminal Hacks 6 | . 5 1 Part Schematic 1 | . 1 . Prototype ID Bank 2 | . 2 . Open Door 1 | . . 1 Terminal Index 2 | . 2 . Fabricator Hacks . | . . . Repair Station Hacks . | . . . Recycling Unit Hacks . | . . . Scanalyzer . | . . . Garrison Access Hacks . | . . . Unauthorized Hacks 4 | . 4 . Terminals 4 | . 4 . Assimilate 1 | . 1 . Botnet 3 | . 3 . Fabricators . | . . . Repair Stations . | . . . Recycling Units . | . . . Scanalyzers . | . . . Garrison Access . | . . . Data Cores Recovered . | . . . Used . | . . . Hacking Detections 7 | . 7 . Full Trace Events . | . . . Feedback Events . | . . . Feedback Blocked . | . . . Robot Schematics Acquired . | . . . Robots Built . | . . . Authchips . | . . . Time . | . . . Total Robot Build Rating . | . . . Part Schematics Acquired 1 | . 1 . Parts Built . | . . . Authchips . | . . . Time . | . . . Total Part Build Rating . | . . . Parts Repaired . | . . . Time . | . . . Parts Recycled . | . . . Recycled Matter . | . . . Retrieved Matter . | . . . Retrieved Components . | . . . Parts Scanalyzed . | . . . Part Schematics Acquired . | . . . Parts Damaged . | . . . Bothacking | -11 -10 -10 ------------ Run | Yrd Mat Min Used RIF Installer . | . . . Robots Hacked . | . . . Non-combat . | . . . Combat . | . . . Robot Hacks Applied . | . . . Relay Couplers Released . | . . . Fabnet Peak Effective % . | . . . Robots Rewired . | . . . Allies Hacked . | . . . Hacks Repelled . | . . . Allies | -11 -10 -10 -------- Run | Yrd Mat Min Total Allies 1 | . 1 . Largest Group 1 | . 1 1 Highest-Rated Group 10 | . 10 10 Highest-Rated Ally 10 | . 10 10 Total Orders 4 | . 2 2 STAY 2 | . 1 1 ROAM 1 | . . 1 FOLLOW 1 | . 1 . Ally Attacks . | . . . Total Damage . | . . . Kills . | . . . Allies Corrupted . | . . . Allies Melted . | . . . Intel | -11 -10 -10 ------- Run | Yrd Mat Min Robot Analysis Total . | . . . Derelict Logs Recovered . | . . . Drone Launches . | . . . Drone Recoveries . | . . . Exploration | -11 -10 -10 ------------- Run | Yrd Mat Min Turns Passed 1121 | 87 739 295 Spaces Moved 726 | 47 489 190 Core 5 | 5 . . Treads 40 | 40 . . Legs 681 | 2 489 190 Wheels . | . . . Hover . | . . . Flight . | . . . Fastest Speed 50 | 50 120 120 Average Speed 121 | 146 120 120 Slowest Speed 190 | 160 190 120 Overloaded Moves . | . . . Propulsion Burnouts . | . . . Robots Hopped . | . . . Cave-ins Triggered . | . . . Exploration Rate (%) 31 | 5 52 37 Regions Visited 2 Branch Regions 1 Pre-discovered Areas . | . . . Known Exits Taken . | . . . Unknown Exits Taken 2 | 1 1 . Scrap Searched . | . . . Spaces Dug 4 | . . 4 Terrain Destroyed 38 | . 24 14 Melee . | . . . Projectile 4 | . . 4 AOE 34 | . 24 10 Terrain Rammed . | . . . Walls Destroyed . | . . . Machines Disabled . | . . . Actions | -11 -10 -10 --------- Run | Yrd Mat Min Total 857 | 61 566 230 Wait 12 | . 10 2 Move 724 | 46 488 190 Hop . | . . . Pick Up 20 | 6 9 5 Fast Attach 14 | 6 6 2 Attach 5 | . 2 3 Detach 3 | 1 1 1 Swap 10 | 2 2 6 Drop 18 | . 10 8 Fire 48 | . 38 10 Melee 3 | . . 3 Ram . | . . . Kick . | . . . Crush . | . . . Escape Stasis . | . . . Rewire . | . . . Trap . | . . . Miscellaneous . | . . . Route ------- -11/Scrapyard -10/Materials (discovered 2 exits: [*Mat] / *Min) -10/Mines (discovered 1 exit: [Sub]) History --------- Turn | Location | Event 21 | -11/Scrapyard | Discovered new exit (range 16) 88 | -11/Scrapyard | Entered Materials 244 | -10/Materials | Discovered new exit (range 9) 306 | -10/Materials | Build established: Mutant 530 | -10/Materials | Discovered new exit (range 12) 827 | -10/Materials | Entered Mines 827 | -10/Mines | Accompanied by 1 ally 842 | -10/Mines | Discovered new exit (range 14) 962 | -10/Mines | Met a Derelict shopkeep closing up shop 1064 | -10/Mines | Assembled infested the area 1070 | -10/Mines | A weapon hastily lodged in a ceiling crevice suddenly fell to the ground 1100 | -10/Mines | Core integrity fell below 50% 1111 | -10/Mines | Core integrity fell below 20% 1122 | -10/Mines | Destroyed by D-53 Grenadier with Mini Grenade Launcher Last Messages --------------- 01070_ A Hvy. Battle Rifle has been hastily shoved under some rubble with a note attached: "To battle!" 01072_ C-30 ARC bursts open, deploying its payload. 01072_ D-53 Grenadier unfolds itself. 01072_ Technician 1a destroyed. 01072_ U-05 Engineer lays Concrete. 01087_ K-01 Serf collects debris. 01088_ The unstable cave ceiling collapses. 01088_ as-00299 destroyed. 01088_ as-72969 destroyed. 01090_ as-23012 destroyed. 01098_ as-39532 destroyed. 01099_ K-01 Serf destroyed. 01102_ as-41443 destroyed. 01108_ EM Pulse Gun destroyed. 01108_ Lgt. Nuclear Core destroyed. 01110_ The unstable cave ceiling collapses. 01110_ Imp. Aluminum Leg destroyed. 01114_ The unstable cave ceiling collapses. 01117_ Dropped Imp. Aluminum Leg. Map ----- +----------------------------------------------------+ | ??????????????????????????????????????????????? | | ??????????????????????????????????????????????? | | ???????#??????????????????????????????????????? | | ?????#????????????????????????????????????????? | | ??? ?#????????????##?????????????????????????? | | ??? ????????????#?????????????????????????????? | | ??????????????????#????#?????#????????????????? | | ??????????????????